fUST/lending_fUST_20241124
["ID","MTS","AMOUNT","RATE_DAILY","PERIOD"]
[343190593,1732428646754,-500.0,0.00019171,2]
[343190594,1732428646765,-500.0,0.00019171,2]
[343190595,1732428646775,-500.0,0.00019171,2]
[343190596,1732428646785,-650.0,0.00019171,2]
[343190597,1732428646795,-500.0,0.00019171,2]
[343190598,1732428646805,-151.0,0.00019172,2]
[343190599,1732428646814,-151.929858,0.00019172,2]
[343190600,1732428646824,-151.0,0.00019172,2]
[343190601,1732428646833,-298.477418,0.00019172,2]
[343190602,1732428646843,-361.219784,0.00019172,2]
[343190603,1732428646852,-361.219784,0.00019172,2]
[343190604,1732428646862,-361.219784,0.00019172,2]
[343190605,1732428646872,-361.219784,0.00019172,2]
[343190606,1732428646881,-361.219784,0.00019172,2]
[343190607,1732428646890,-361.219784,0.00019172,2]
[343190608,1732428646899,-361.219784,0.00019172,2]
[343190609,1732428646909,-361.219784,0.00019172,2]
[343190610,1732428646918,-361.219784,0.00019172,2]
[343190611,1732428646928,-361.219784,0.00019172,2]
[343190612,1732428646938,-361.219784,0.00019172,2]
[343190613,1732428646947,-361.219784,0.00019172,2]
[343190614,1732428646957,-361.219784,0.00019172,2]
[343190615,1732428646966,-151.0,0.00019172,2]
[343190616,1732428646976,-361.219784,0.00019172,2]
[343190617,1732428646985,-151.0,0.00019172,2]
[343190618,1732428646996,-361.219784,0.00019172,2]
[343190619,1732428647005,-163.486085,0.00019172,2]
[343190620,1732428647015,-361.219784,0.00019172,2]
[343190621,1732428647024,-361.219784,0.00019172,2]
[343190622,1732428647034,-361.219784,0.00019172,2]
[343190623,1732428647046,-152.241781,0.00019172,2]
[343190624,1732428647055,-500.50624144,0.00019173,2]
[343190625,1732428647065,-500.0,0.00019173,2]
[343190626,1732428647074,-504.43252055,0.00019173,2]
[343190627,1732428647085,-503.89928731,0.00019173,2]
[343190628,1732428647095,-501.20095146,0.00019173,2]
[343190629,1732428647104,-500.99511087,0.00019173,2]
[343190630,1732428647114,-502.2319474,0.00019173,2]
[343190631,1732428647126,-504.85801939,0.00019173,2]
[343190632,1732428647136,-151.0,0.00019173,2]
[343190633,1732428647146,-151.0,0.00019173,2]
[343190634,1732428647155,-151.0,0.00019173,2]
[343190635,1732428647165,-151.0,0.00019173,2]
[343190636,1732428647174,-151.0,0.00019173,2]
[343190637,1732428647184,-194.929687,0.00019173,2]
[343190638,1732428647194,-194.929687,0.00019173,2]
[343190639,1732428647203,-153.764961,0.00019173,2]
[343190640,1732428647213,-152.748252,0.00019173,2]
[343190641,1732428647223,-152.073013,0.00019173,2]
[343190642,1732428647232,-153.197921,0.00019173,2]
[343190643,1732428647243,-151.0,0.00019173,2]
[343190644,1732428647260,-151.0,0.00019173,2]
[343190645,1732428647280,-151.0,0.00019173,2]
[343190646,1732428647291,-151.0,0.00019173,2]
[343190647,1732428647300,-151.0,0.00019173,2]
[343190648,1732428647309,-151.0,0.00019173,2]
[343190649,1732428647319,-151.0,0.00019173,2]
[343190650,1732428647328,-151.248671,0.00019173,2]
[343190651,1732428647338,-151.0,0.00019173,2]
[343190652,1732428647347,-151.0,0.00019173,2]
[343190653,1732428647356,-151.0,0.00019173,2]
[343190654,1732428647366,-151.0,0.00019173,2]
[343190655,1732428647375,-274.698555,0.00019173,2]
[343190656,1732428647385,-151.0,0.00019173,2]
[343190657,1732428647394,-240.926131,0.00019173,2]
[343190658,1732428647404,-151.0,0.00019173,2]
[343190659,1732428647413,-151.0,0.00019173,2]
[343190660,1732428647423,-151.0,0.00019173,2]
[343190661,1732428647432,-151.0,0.00019173,2]
[343190662,1732428647442,-151.0,0.00019173,2]
[343190663,1732428647451,-151.0,0.00019173,2]
[343190664,1732428647460,-151.0,0.00019173,2]
[343190665,1732428647474,-151.0,0.00019173,2]
[343190666,1732428647500,-151.0,0.00019173,2]
[343190667,1732428647511,-151.0,0.00019173,2]
[343190668,1732428647520,-152.69637,0.00019173,2]
[343190669,1732428647530,-152.288358,0.00019173,2]
[343190670,1732428647538,-179.188644,0.00019173,2]
[343190671,1732428647547,-179.188644,0.00019173,2]
[343190672,1732428647557,-179.188644,0.00019173,2]
[343190673,1732428647566,-179.188644,0.00019173,2]
[343190674,1732428647575,-179.188644,0.00019173,2]
[343190675,1732428647585,-179.188644,0.00019173,2]
[343190676,1732428647595,-179.188644,0.00019173,2]
[343190677,1732428647605,-179.188644,0.00019173,2]
[343190678,1732428647616,-179.188644,0.00019173,2]
[343190679,1732428647625,-179.188644,0.00019173,2]
[343190680,1732428647635,-179.188644,0.00019173,2]
[343190681,1732428647645,-179.188644,0.00019173,2]
[343190682,1732428647654,-179.188644,0.00019173,2]
[343190683,1732428647665,-179.188644,0.00019173,2]
[343190684,1732428647674,-179.188644,0.00019173,2]
[343190685,1732428647685,-179.188644,0.00019173,2]
[343190686,1732428647694,-179.188644,0.00019173,2]
[343190687,1732428647704,-179.188644,0.00019173,2]
[343190688,1732428647714,-179.188644,0.00019173,2]
[343190689,1732428647724,-179.18865,0.00019173,2]
[343190690,1732428647733,-151.0,0.00019173,2]
[343190691,1732428647744,-153.886054,0.00019173,2]
[343190692,1732428647754,-151.0,0.00019173,2]
[343190693,1732428647763,-174.658581,0.00019173,2]
[343190694,1732428647773,-361.219784,0.00019173,2]
[343190695,1732428647784,-361.219782,0.00019173,2]
[343190696,1732428647795,-151.0,0.00019175,2]
[343190697,1732428647804,-151.0,0.00019175,2]
[343190698,1732428647814,-151.0,0.00019175,2]
[343190699,1732428647824,-165.786365,0.00019175,2]
[343190700,1732428647834,-151.0,0.00019175,2]
[343190701,1732428647844,-151.0,0.00019175,2]
[343190702,1732428647854,-151.0,0.00019175,2]
[343190703,1732428647863,-151.0,0.00019175,2]
[343190704,1732428647874,-151.0,0.00019175,2]
[343190705,1732428647883,-151.0,0.00019175,2]
[343190706,1732428647893,-151.0,0.00019175,2]
[343190707,1732428647902,-151.0,0.00019175,2]
[343190708,1732428647912,-151.0,0.00019175,2]
[343190709,1732428647922,-151.0,0.00019175,2]
[343190710,1732428647932,-151.0,0.00019175,2]
[343190711,1732428647942,-151.0,0.00019175,2]
[343190712,1732428647952,-151.0,0.00019175,2]
[343190713,1732428647961,-151.0,0.00019175,2]
[343190714,1732428647971,-168.355526,0.00019175,2]
[343190715,1732428647981,-212.441438,0.00019176,2]
[343190716,1732428647991,-47.44069482,0.00019176,2]
[343190732,1732429304246,165.911171,0.00013973,2]
[343190735,1732429699408,528.36608203,0.000125,2]
[343190736,1732429724204,1180.40452348,0.000109,2]
[343190769,1732429832606,-188.0,0.00018162,2]
[343190770,1732429832616,-8251.99999999,0.00018163,2]
[343190830,1732429843694,-525.89442,0.00018163,2]
[343190849,1732429844267,-4701.8128023,0.00018163,2]
[343190858,1732429969937,165.911171,0.00013973,2]
[343190864,1732430719967,165.911171,0.00013973,2]
[343190919,1732431032977,-291.0,0.00018024,2]
[343190921,1732431032987,-300.0,0.00018024,2]
[343190923,1732431032997,-497.22493707,0.00018025,2]
[343190961,1732431038799,-10007.58076486,0.00018025,2]
[343190962,1732431038809,-24900.0,0.00018175,2]
[343190963,1732431038819,-774.9380513,0.00018977,2]
[343190964,1732431038828,-529.86521711,0.00019077,2]
[343190965,1732431038838,-380.03289496,0.00019078,2]
[343190966,1732431038850,-666.0,0.00019078,2]
[343190967,1732431038860,-5312.54390962,0.00019078,2]
[343190968,1732431038869,-402.11771326,0.00019078,2]
[343190969,1732431038880,-493.82,0.00019168,3]
[343190970,1732431038889,-246.91,0.00019168,3]
[343190971,1732431038898,-740.73,0.00019168,3]
[343190972,1732431038907,-500.0,0.00019173,2]
[343190973,1732431038918,-501.34364247,0.00019173,2]
[343190974,1732431038928,-500.91625951,0.00019173,2]
[343190975,1732431038939,-501.03117982,0.00019173,2]
[343190976,1732431038948,-1357.09384714,0.00019175,2]
[343190977,1732431038958,-167.749258,0.00019177,2]
[343190978,1732431038967,-153.326718,0.00019177,2]
[343190979,1732431038976,-167.749258,0.00019177,2]
[343190980,1732431038986,-151.0,0.00019177,2]
[343190981,1732431038996,-151.0,0.00019177,2]
[343190982,1732431039005,-151.0,0.00019177,2]
[343190983,1732431039015,-151.0,0.00019177,2]
[343190985,1732431039024,-151.0,0.00019177,2]
[343190986,1732431039034,-151.0,0.00019177,2]
[343190987,1732431039043,-151.0,0.00019177,2]
[343190988,1732431039053,-151.0,0.00019177,2]
[343190989,1732431039062,-151.0,0.00019177,2]
[343190990,1732431039072,-151.0,0.00019177,2]
[343190991,1732431039082,-151.0,0.00019177,2]
[343190992,1732431039091,-151.0,0.00019177,2]
[343190993,1732431039101,-552.33795755,0.00019177,2]
[343190994,1732431039110,-218.58210329,0.00019177,2]
[343190995,1732431039119,-212.49221548,0.00019177,2]
[343190996,1732431039129,-500.0,0.00019177,2]
[343190997,1732431039139,-500.0,0.00019177,2]
[343190998,1732431039149,-428.78751887,0.00019177,2]
[343190999,1732431039158,-500.0,0.00019177,2]
[343191000,1732431039167,-500.0,0.00019177,2]
[343191001,1732431039177,-500.0,0.00019177,2]
[343191002,1732431039187,-500.0,0.00019177,2]
[343191003,1732431039196,-402.69270532,0.00019177,2]
[343191004,1732431039207,-500.0,0.00019177,2]
[343191005,1732431039219,-379.56684868,0.00019177,2]
[343191006,1732431039228,-152.012862,0.00019178,2]
[343191007,1732431039238,-501.82262406,0.00019178,2]
[343191008,1732431039247,-501.03358843,0.00019178,2]
[343191009,1732431039256,-500.63852962,0.00019178,2]
[343191010,1732431039265,-500.49589082,0.00019178,2]
[343191011,1732431039274,-500.0,0.00019178,2]
[343191012,1732431039283,-310.85614983,0.00019178,2]
[343191013,1732431039293,-155.77536134,0.00019178,2]
[343191014,1732431039302,-530.38534663,0.00019178,2]
[343191015,1732431039312,-500.0,0.00019178,2]
[343191016,1732431039321,-510.47021794,0.00019178,2]
[343191017,1732431039330,-307.86846357,0.00019178,2]
[343191018,1732431039339,-505.61489479,0.00019178,2]
[343191019,1732431039348,-503.88952714,0.00019178,2]
[343191020,1732431039359,-515.83242373,0.00019178,2]
[343191021,1732431039368,-501.62053978,0.00019178,2]
[343191022,1732431039379,-503.88355655,0.00019178,2]
[343191023,1732431039388,-501.78545406,0.00019178,2]
[343191024,1732431039397,-504.64210669,0.00019178,2]
[343191025,1732431039407,-500.47759816,0.00019178,2]
[343191026,1732431039416,-501.05207853,0.00019178,2]
[343191027,1732431039425,-500.4121451,0.00019178,2]
[343191028,1732431039434,-502.12726883,0.00019178,2]
[343191029,1732431039443,-501.02054154,0.00019178,2]
[343191030,1732431039452,-501.95690293,0.00019178,2]
[343191031,1732431039462,-503.40474322,0.00019178,2]
[343191032,1732431039471,-500.63430879,0.00019178,2]
[343191033,1732431039482,-502.27039051,0.00019178,2]
[343191034,1732431039492,-501.12752272,0.00019178,2]
[343191035,1732431039502,-501.03036537,0.00019178,2]
[343191036,1732431039512,-501.11954213,0.00019178,2]
[343191037,1732431039521,-505.02320702,0.00019178,2]
[343191038,1732431039532,-500.75719157,0.00019178,2]
[343191039,1732431039543,-501.93204098,0.00019178,2]
[343191040,1732431039552,-500.19442032,0.00019178,2]
[343191041,1732431039563,-505.16580298,0.00019178,2]
[343191042,1732431039581,-198.00513834,0.00019178,2]
[343191043,1732431039593,-500.49945008,0.00019178,2]
[343191044,1732431039603,-503.38835848,0.00019178,2]
[343191045,1732431039613,-501.2177242,0.00019178,2]
[343191046,1732431039623,-537.43336229,0.00019178,2]
[343191047,1732431039635,-415.75312386,0.00019178,2]
[343191048,1732431039644,-500.93163786,0.00019178,2]
[343191049,1732431039654,-501.13045174,0.00019178,2]
[343191050,1732431039663,-503.16362638,0.00019178,2]
[343191051,1732431039673,-500.68429734,0.00019178,2]
[343191052,1732431039683,-500.5971854,0.00019178,2]
[343191053,1732431039692,-575.23934315,0.00019178,2]
[343191054,1732431039703,-500.19347409,0.00019178,2]
[343191055,1732431039713,-500.83130312,0.00019178,2]
[343191056,1732431039723,-503.74987621,0.00019178,2]
[343191057,1732431039732,-545.51361529,0.00019178,2]
[343191058,1732431039742,-151.0,0.00019178,2]
[343191059,1732431039752,-151.731421,0.00019178,2]
[343191060,1732431039761,-502.2624027,0.00019178,2]
[343191061,1732431039774,-503.76616807,0.00019178,2]
[343191062,1732431039783,-500.0,0.00019178,2]
[343191063,1732431039793,-501.37096039,0.00019178,2]
[343191064,1732431039802,-156.54679,0.00019178,2]
[343191065,1732431039812,-262.180061,0.00019178,2]
[343191066,1732431039822,-262.180061,0.00019178,2]
[343191067,1732431039831,-262.180061,0.00019178,2]
[343191068,1732431039841,-262.180061,0.00019178,2]
[343191069,1732431039851,-262.180061,0.00019178,2]
[343191070,1732431039860,-262.180061,0.00019178,2]
[343191071,1732431039870,-262.180061,0.00019178,2]
[343191072,1732431039882,-262.180061,0.00019178,2]
[343191073,1732431039891,-262.180061,0.00019178,2]
[343191074,1732431039901,-262.180061,0.00019178,2]
[343191075,1732431039911,-262.180061,0.00019178,2]
[343191076,1732431039920,-262.180061,0.00019178,2]
[343191077,1732431039930,-262.180061,0.00019178,2]
[343191078,1732431039940,-262.180061,0.00019178,2]
[343191079,1732431039950,-262.180061,0.00019178,2]
[343191080,1732431039960,-262.180061,0.00019178,2]
[343191081,1732431039970,-262.180061,0.00019178,2]
[343191082,1732431039979,-262.180061,0.00019178,2]
[343191083,1732431039988,-262.180061,0.00019178,2]
[343191084,1732431039998,-262.180067,0.00019178,2]
[343191085,1732431040008,-500.0,0.00019178,2]
[343191086,1732431040018,-502.68722893,0.00019178,2]
[343191087,1732431040028,-501.73013496,0.00019178,2]
[343191088,1732431040038,-500.0,0.00019178,2]
[343191089,1732431040047,-500.0,0.00019178,2]
[343191090,1732431040057,-306.61445038,0.00019178,2]
[343191091,1732431040066,-500.0,0.00019178,2]
[343191092,1732431040076,-511.49661877,0.00019178,2]
[343191093,1732431040086,-500.36803786,0.00019178,2]
[343191094,1732431040096,-500.65831573,0.00019178,2]
[343191095,1732431040105,-510.44104204,0.00019178,2]
[343191096,1732431040115,-501.36033358,0.00019178,2]
[343191097,1732431040124,-637.98570591,0.00019178,2]
[343191098,1732431040135,-151.0,0.00019178,2]
[343191099,1732431040145,-151.0,0.00019178,2]
[343191100,1732431040155,-151.0,0.00019178,2]
[343191101,1732431040164,-151.0,0.00019178,2]
[343191102,1732431040174,-502.25394407,0.00019178,2]
[343191103,1732431040184,-151.0,0.00019178,2]
[343191104,1732431040194,-151.0,0.00019178,2]
[343191105,1732431040203,-151.0,0.00019178,2]
[343191106,1732431040215,-151.0,0.00019178,2]
[343191107,1732431040225,-151.0,0.00019178,2]
[343191108,1732431040235,-259.119006,0.00019178,2]
[343191109,1732431040244,-503.42935961,0.00019178,2]
[343191110,1732431040254,-500.0,0.00019178,2]
[343191111,1732431040264,-500.0,0.00019178,2]
[343191112,1732431040274,-500.0,0.00019178,2]
[343191113,1732431040284,-251.5723915,0.00019178,2]
[343191114,1732431040295,-500.0,0.00019178,2]
[343191115,1732431040307,-501.51705746,0.00019178,2]
[343191116,1732431040317,-500.0,0.00019178,2]
[343191117,1732431040327,-513.08610996,0.00019178,2]
[343191118,1732431040337,-501.87587876,0.00019178,2]
[343191119,1732431040347,-503.90863904,0.00019178,2]
[343191120,1732431040356,-500.0,0.00019178,2]
[343191121,1732431040366,-502.11812287,0.00019178,2]
[343191122,1732431040375,-500.76831661,0.00019178,2]
[343191123,1732431040386,-502.63430404,0.00019178,2]
[343191124,1732431040396,-151.0,0.00019178,2]
[343191125,1732431040406,-501.05384942,0.00019178,2]
[343191126,1732431040416,-151.0,0.00019178,2]
[343191127,1732431040426,-151.0,0.00019178,2]
[343191128,1732431040435,-151.0,0.00019178,2]
[343191130,1732431040447,-151.0,0.00019178,2]
[343191131,1732431040457,-151.0,0.00019178,2]
[343191132,1732431040467,-151.0,0.00019178,2]
[343191134,1732431040477,-151.0,0.00019178,2]
[343191136,1732431040487,-151.0,0.00019178,2]
[343191138,1732431040496,-151.0,0.00019178,2]
[343191139,1732431040506,-151.0,0.00019178,2]
[343191140,1732431040516,-151.0,0.00019178,2]
[343191141,1732431040526,-502.86011132,0.00019178,2]
[343191142,1732431040535,-151.0,0.00019178,2]
[343191143,1732431040545,-151.0,0.00019178,2]
[343191144,1732431040555,-151.0,0.00019178,2]
[343191145,1732431040565,-500.0,0.00019178,2]
[343191146,1732431040575,-257.247137,0.00019178,2]
[343191147,1732431040584,-508.26812013,0.00019178,2]
[343191148,1732431040594,-505.68470796,0.00019178,2]
[343191149,1732431040603,-152.278972,0.00019178,2]
[343191150,1732431040613,-505.45641121,0.00019178,2]
[343191151,1732431040622,-522.00396471,0.00019178,2]
[343191152,1732431040634,-502.55946783,0.00019178,2]
[343191153,1732431040645,-151.0,0.00019178,2]
[343191154,1732431040655,-151.0,0.00019178,2]
[343191155,1732431040665,-502.10337163,0.00019178,2]
[343191156,1732431040675,-151.0,0.00019178,2]
[343191157,1732431040684,-151.0,0.00019178,2]
[343191158,1732431040812,-502.5333558,0.00019178,2]
[343191159,1732431040822,-151.0,0.00019178,2]
[343191160,1732431040831,-151.0,0.00019178,2]
[343191161,1732431040840,-151.0,0.00019178,2]
[343191162,1732431040851,-152.698004,0.00019178,2]
[343191163,1732431040860,-151.0,0.00019178,2]
[343191164,1732431040869,-151.0,0.00019178,2]
[343191165,1732431040881,-197.345407,0.00019178,2]
[343191166,1732431040890,-506.24151699,0.00019178,2]
[343191167,1732431040899,-500.0,0.00019178,2]
[343191168,1732431040908,-506.92293329,0.00019178,2]
[343191169,1732431040917,-151.0,0.00019178,2]
[343191170,1732431040926,-151.0,0.00019178,2]
[343191171,1732431040935,-151.0,0.00019178,2]
[343191172,1732431040944,-213.235732,0.00019178,2]
[343191173,1732431040953,-500.8935551,0.00019178,2]
[343191174,1732431040962,-504.06109199,0.00019178,2]
[343191175,1732431040972,-502.9965634,0.00019178,2]
[343191176,1732431040982,-500.81396911,0.00019178,2]
[343191177,1732431040992,-501.45113012,0.00019178,2]
[343191178,1732431041002,-428.20869828,0.00019178,2]
[343191180,1732431041012,-228.4609267,0.00019178,2]
[343191182,1732431041022,-500.0,0.00019178,2]
[343191184,1732431041031,-527.29314271,0.00019178,2]
[343191186,1732431041041,-506.38860272,0.00019178,2]
[343191188,1732431041050,-504.0932322,0.00019178,2]
[343191190,1732431041060,-510.08408968,0.00019178,2]
[343191192,1732431041069,-501.4716445,0.00019178,2]
[343191195,1732431041081,-501.24340299,0.00019178,2]
[343191197,1732431041091,-500.2186567,0.00019178,2]
[343191199,1732431041101,-432.32299966,0.00019178,2]
[343191201,1732431041111,-175.436718,0.00019178,2]
[343191203,1732431041119,-501.58737214,0.00019178,2]
[343191204,1732431041131,-175.436718,0.00019178,2]
[343191206,1732431041140,-531.3625032,0.00019178,2]
[343191208,1732431041150,-175.436718,0.00019178,2]
[343191211,1732431041160,-175.436718,0.00019178,2]
[343191213,1732431041169,-175.436718,0.00019178,2]
[343191215,1732431041179,-175.436718,0.00019178,2]
[343191217,1732431041189,-175.436718,0.00019178,2]
[343191218,1732431041198,-401.65564192,0.00019178,2]
[343191221,1732431041208,-175.436718,0.00019178,2]
[343191222,1732431041218,-175.436718,0.00019178,2]
[343191224,1732431041228,-175.436718,0.00019178,2]
[343191226,1732431041237,-175.436718,0.00019178,2]
[343191228,1732431041246,-175.436718,0.00019178,2]
[343191230,1732431041256,-175.436718,0.00019178,2]
[343191232,1732431041266,-175.436718,0.00019178,2]
[343191234,1732431041275,-175.436718,0.00019178,2]
[343191236,1732431041285,-175.436718,0.00019178,2]
[343191238,1732431041295,-175.436718,0.00019178,2]
[343191240,1732431041304,-175.436718,0.00019178,2]
[343191242,1732431041314,-175.436718,0.00019178,2]
[343191244,1732431041323,-175.436716,0.00019178,2]
[343191246,1732431041333,-502.70758045,0.00019178,2]
[343191248,1732431041342,-512.15678751,0.00019178,2]
[343191250,1732431041352,-501.90554516,0.00019178,2]
[343191252,1732431041361,-151.0,0.00019178,2]
[343191254,1732431041371,-157.045077,0.00019178,2]
[343191256,1732431041384,-501.81126689,0.00019178,2]
[343191258,1732431041393,-517.91732416,0.00019178,2]
[343191260,1732431041403,-500.0,0.00019178,2]
[343191262,1732431041412,-151.0,0.00019178,2]
[343191264,1732431041422,-500.0,0.00019178,2]
[343191266,1732431041431,-186.3056,0.00019178,2]
[343191268,1732431041441,-503.80901789,0.00019178,2]
[343191270,1732431041449,-226.04990819,0.00019178,2]
[343191272,1732431041458,-514.56298329,0.00019178,2]
[343191274,1732431041467,-305.33243304,0.00019178,2]
[343191276,1732431041477,-501.82194567,0.00019178,2]
[343191278,1732431041486,-505.66691303,0.00019178,2]
[343191280,1732431041495,-504.13368938,0.00019178,2]
[343191282,1732431041505,-503.14366103,0.00019178,2]
[343191284,1732431041515,-518.68844876,0.00019178,2]
[343191286,1732431041524,-502.64915562,0.00019178,2]
[343191288,1732431041534,-501.14140414,0.00019178,2]
[343191290,1732431041543,-500.0,0.00019178,2]
[343191292,1732431041552,-500.0,0.00019178,2]
[343191294,1732431041562,-500.0,0.00019178,2]
[343191296,1732431041571,-369.02,0.00019178,2]
[343191298,1732431041581,-501.03306021,0.00019178,2]
[343191300,1732431041591,-167.749258,0.00019178,2]
[343191302,1732431041601,-167.749258,0.00019178,2]
[343191304,1732431041610,-167.749258,0.00019178,2]
[343191306,1732431041620,-508.86415293,0.00019178,2]
[343191308,1732431041632,-167.749258,0.00019178,2]
[343191310,1732431041640,-167.749258,0.00019178,2]
[343191312,1732431041650,-167.749258,0.00019178,2]
[343191314,1732431041659,-167.749258,0.00019178,2]
[343191316,1732431041668,-167.749258,0.00019178,2]
[343191318,1732431041678,-501.9988584,0.00019178,2]
[343191320,1732431041687,-167.749258,0.00019178,2]
[343191322,1732431041696,-167.749258,0.00019178,2]
[343191324,1732431041706,-167.749258,0.00019178,2]
[343191326,1732431041716,-167.749258,0.00019178,2]
[343191328,1732431041725,-167.749258,0.00019178,2]
[343191329,1732431041734,-502.73901448,0.00019178,2]
[343191331,1732431041744,-167.749258,0.00019178,2]
[343191333,1732431041753,-167.749258,0.00019178,2]
[343191335,1732431041763,-167.749258,0.00019178,2]
[343191338,1732431041778,-167.749258,0.00019178,2]
[343191340,1732431041787,-167.749264,0.00019178,2]
[343191341,1732431041797,-507.89516256,0.00019178,2]
[343191344,1732431041807,-553.63883057,0.00019178,2]
[343191346,1732431041820,-500.58621185,0.00019178,2]
[343191348,1732431041830,-503.57702142,0.00019178,2]
[343191350,1732431041839,-506.394561,0.00019178,2]
[343191352,1732431041850,-500.46923697,0.00019178,2]
[343191354,1732431041860,-241.18798157,0.00019178,2]
[343191357,1732431041881,-201.26728223,0.00019178,2]
[343191359,1732431041891,-531.46337726,0.00019178,2]
[343191361,1732431041900,-256.28439063,0.00019178,2]
[343191363,1732431041910,-522.5086366,0.00019178,2]
[343191365,1732431041919,-504.09272561,0.00019178,2]
[343191367,1732431041928,-617.34058421,0.00019178,2]
[343191369,1732431041938,-513.29414429,0.00019178,2]
[343191371,1732431041948,-283.72587765,0.00019178,2]
[343191372,1732431041958,-151.0,0.00019178,2]
[343191373,1732431041968,-151.0,0.00019178,2]
[343191374,1732431041977,-151.0,0.00019178,2]
[343191375,1732431041988,-261.924352,0.00019178,2]
[343191376,1732431041997,-510.30252981,0.00019178,2]
[343191377,1732431042007,-501.77585477,0.00019178,2]
[343191378,1732431042017,-502.34891474,0.00019178,2]
[343191379,1732431042026,-504.92393694,0.00019178,2]
[343191380,1732431042036,-151.0,0.00019178,2]
[343191381,1732431042045,-151.0,0.00019178,2]
[343191382,1732431042055,-151.0,0.00019178,2]
[343191383,1732431042064,-169.16779136,0.00019178,2]
[343191384,1732431042073,-151.0,0.00019178,2]
[343191385,1732431042083,-151.0,0.00019178,2]
[343191386,1732431042093,-270.727005,0.00019178,2]
[343191387,1732431042102,-518.77659653,0.00019178,2]
[343191388,1732431042111,-500.80656497,0.00019178,2]
[343191389,1732431042121,-502.2202562,0.00019178,2]
[343191390,1732431042132,-151.0,0.00019178,2]
[343191391,1732431042142,-151.0,0.00019178,2]
[343191392,1732431042151,-167.787099,0.00019178,2]
[343191393,1732431042161,-502.76714178,0.00019178,2]
[343191394,1732431042171,-502.61466436,0.00019178,2]
[343191395,1732431042181,-511.2303322,0.00019178,2]
[343191396,1732431042191,-508.74926433,0.00019178,2]
[343191397,1732431042200,-625.0,0.00019178,2]
[343191398,1732431042210,-515.85243799,0.00019178,2]
[343191399,1732431042221,-401.2521558,0.00019178,2]
[343191400,1732431042230,-504.05262366,0.00019178,2]
[343191401,1732431042239,-266.7877818,0.00019178,2]
[343191402,1732431042248,-500.0,0.00019178,2]
[343191403,1732431042258,-500.0,0.00019178,2]
[343191404,1732431042267,-502.10011283,0.00019178,2]
[343191405,1732431042276,-200.63471352,0.00019178,2]
[343191406,1732431042285,-506.05124678,0.00019178,2]
[343191407,1732431042295,-500.48610477,0.00019178,2]
[343191408,1732431042306,-548.20939172,0.00019178,2]
[343191409,1732431042315,-506.35225586,0.00019178,2]
[343191410,1732431042325,-503.96819641,0.00019178,2]
[343191411,1732431042335,-504.20083143,0.00019178,2]
[343191412,1732431042345,-505.84957631,0.00019178,2]
[343191413,1732431042356,-152.948207,0.00019178,2]
[343191414,1732431042366,-151.0,0.00019178,2]
[343191415,1732431042376,-494.25389259,0.00019178,2]
[343191416,1732431042389,-501.32406319,0.00019178,2]
[343191417,1732431042400,-500.67370266,0.00019178,2]
[343191418,1732431042409,-497.8304764,0.00019178,2]
[343191419,1732431042419,-501.09253381,0.00019178,2]
[343191420,1732431042429,-500.5097305,0.00019178,2]
[343191421,1732431042438,-312.57606661,0.00019178,2]
[343191422,1732431042447,-506.66764257,0.00019178,2]
[343191423,1732431042456,-500.0,0.00019178,2]
[343191424,1732431042465,-503.31841054,0.00019178,2]
[343191425,1732431042475,-501.25898837,0.00019178,2]
[343191426,1732431042485,-502.61801925,0.00019178,2]